lending/lending_fUSD_20241120
["ID","MTS","AMOUNT","RATE_DAILY","PERIOD"]
[342726952,1732086728206,-1703.66,0.00058082,120]
[342726953,1732086728220,-500.0,0.00058082,120]
[342726954,1732086728234,-500.0,0.00058082,120]
[342726955,1732086728247,-500.0,0.00058082,120]
[342726956,1732086728261,-2720.0,0.00058082,120]
[342726957,1732086728274,-500.0,0.00058082,120]
[342726958,1732086728288,-195.34561286,0.00058082,120]
[342726959,1732086728301,-500.0,0.00058082,120]
[342726960,1732086728315,-829.63,0.00058082,120]
[342726961,1732086728333,-500.0,0.00058082,120]
[342726962,1732086728348,-620.27,0.00058082,120]
[342726963,1732086728365,-2345.32,0.00058082,120]
[342726964,1732086728379,-500.0,0.00058082,120]
[342726965,1732086728394,-405.0041406,0.00058082,120]
[342726966,1732086728407,-1166.49,0.00058082,120]
[342726967,1732086728422,-500.0,0.00058082,120]
[342726968,1732086728436,-734.6,0.00058082,120]
[342726969,1732086728451,-500.0,0.00058082,120]
[342726970,1732086728465,-500.0,0.00058082,120]
[342726971,1732086728480,-2844.38,0.00058082,120]
[342726972,1732086728495,-500.0,0.00058082,120]
[342726973,1732086728510,-1035.53,0.00058082,120]
[342726974,1732086728526,-1318.23,0.00058082,120]
[342726975,1732086728539,-502.36856473,0.00058082,120]
[342726976,1732086728553,-400.36,0.00058082,7]
[342726977,1732086728566,-503.21,0.00058082,120]
[342726978,1732086728581,-500.0,0.00058082,120]
[342726979,1732086728594,-150.0,0.00058082,120]
[342726980,1732086728608,-500.0,0.00058082,120]
[342726981,1732086728622,-500.0,0.00058082,120]
[342726982,1732086728635,-500.0,0.00058082,120]
[342726983,1732086728650,-2000.0,0.00058082,120]
[342726984,1732086728663,-2333.06,0.00058082,120]
[342726985,1732086728678,-500.0,0.00058082,120]
[342726986,1732086728692,-500.0,0.00058082,120]
[342726987,1732086728706,-500.0,0.00058082,120]
[342726988,1732086728720,-500.0,0.00058082,120]
[342726989,1732086728733,-500.0,0.00058082,120]
[342726990,1732086728747,-500.0,0.00058082,120]
[342726991,1732086728761,-3055.61,0.00058082,120]
[342726992,1732086728776,-500.0,0.00058082,120]
[342726993,1732086728789,-3168.55,0.00058082,120]
[342726994,1732086728804,-1697.92,0.00058082,120]
[342726995,1732086728818,-500.0,0.00058082,120]
[342726996,1732086728831,-500.0,0.00058082,120]
[342726997,1732086728845,-500.0,0.00058082,120]
[342726998,1732086728858,-346.75,0.00058082,120]
[342726999,1732086728874,-500.0,0.00058082,120]
[342727000,1732086728888,-590.94483125,0.00058082,120]
[342727001,1732086728903,-500.0,0.00058082,120]
[342727002,1732086728917,-500.0,0.00058082,120]
[342727003,1732086728930,-500.0,0.00058082,120]
[342727004,1732086729125,-500.0,0.00058082,120]
[342727005,1732086729138,-659.42,0.00058082,120]
[342727006,1732086729148,-500.0,0.00058082,120]
[342727007,1732086729158,-2717.09,0.00058082,120]
[342727008,1732086729167,-500.0,0.00058082,120]
[342727009,1732086729176,-354.63018235,0.00058082,120]
[342727010,1732086729186,-500.0,0.00058082,120]
[342727011,1732086729195,-500.0,0.00058082,120]
[342727012,1732086729205,-500.0,0.00058082,120]
[342727013,1732086729214,-798.52,0.00058082,120]
[342727014,1732086729223,-982.26,0.00058082,120]
[342727015,1732086729232,-707.74,0.00058082,120]
[342727016,1732086729241,-4470.82,0.00058082,120]
[342727017,1732086729251,-500.0,0.00058082,120]
[342727018,1732086729261,-650.76,0.00058082,21]
[342727019,1732086729271,-2268.24,0.00058082,120]
[342727020,1732086729281,-3957.68,0.00058082,60]
[342727021,1732086729291,-717.59,0.00058082,120]
[342727022,1732086729300,-3094.65,0.00058082,120]
[342727023,1732086729309,-2000.0,0.00058082,120]
[342727024,1732086729322,-500.0,0.00058082,120]
[342727025,1732086729331,-998.06,0.00058082,120]
[342727026,1732086729341,-1516.88,0.00058082,120]
[342727027,1732086729351,-617.47,0.00058082,120]
[342727028,1732086729362,-2604.2,0.00058082,120]
[342727029,1732086729372,-500.17,0.00058082,120]
[342727030,1732086729382,-509.50631371,0.00058082,120]
[342727031,1732086729391,-635.36,0.00058082,120]
[342727032,1732086729401,-500.0,0.00058082,120]
[342727033,1732086729411,-500.0,0.00058082,120]
[342727034,1732086729420,-500.0,0.00058082,120]
[342727035,1732086729428,-700.75,0.00058082,120]
[342727036,1732086729438,-500.0,0.00058082,120]
[342727037,1732086729448,-505.72,0.00058082,120]
[342727038,1732086729457,-500.0,0.00058082,120]
[342727039,1732086729469,-203.41638618,0.00058082,120]
[342727040,1732086729478,-1000.0,0.00058082,120]
[342727041,1732086729487,-500.0,0.00058082,30]
[342727042,1732086729497,-3206.56,0.00058082,120]
[342727043,1732086729508,-946.93,0.00058082,120]
[342727044,1732086729520,-508.31,0.00058082,120]
[342727045,1732086729531,-500.0,0.00058082,120]
[342727046,1732086729540,-500.0,0.00058082,120]
[342727047,1732086729549,-151.82132433,0.00058082,120]
[342727048,1732086729560,-2581.57,0.00058082,120]
[342727049,1732086729569,-1301.4,0.00058082,120]
[342727050,1732086729579,-5192.93,0.00058082,120]
[342727051,1732086729588,-500.0,0.00058082,120]
[342727052,1732086729600,-852.9,0.00058082,120]
[342727053,1732086729611,-2774.17,0.00058082,120]
[342727054,1732086729626,-3061.68,0.00058082,120]
[342727055,1732086729635,-500.0,0.00058082,120]
[342727056,1732086729645,-500.0,0.00058082,120]
[342727057,1732086729654,-2031.6,0.00058082,120]
[342727058,1732086729663,-500.0,0.00058082,120]
[342727059,1732086729673,-500.0,0.00058082,120]
[342727060,1732086729682,-2936.91,0.00058082,120]
[342727061,1732086729691,-500.0,0.00058082,120]
[342727062,1732086729700,-720.2,0.00058082,120]
[342727063,1732086729709,-428.69486832,0.00058082,120]
[342727064,1732086729719,-2810.53,0.00058082,120]
[342727065,1732086729728,-511.91728088,0.00058082,120]
[342727066,1732086729738,-1822.63,0.00058082,120]
[342727067,1732086729749,-1273.99,0.00058082,120]
[342727068,1732086729759,-850.0,0.00058082,120]
[342727069,1732086729768,-711.44,0.00058082,120]
[342727070,1732086729777,-729.82,0.00058082,120]
[342727071,1732086729787,-2955.44,0.00058082,120]
[342727072,1732086729796,-2080.78,0.00058082,120]
[342727073,1732086729805,-1918.47,0.00058082,120]
[342727074,1732086729815,-434.89366035,0.00058082,120]
[342727075,1732086729824,-606.63,0.00058082,120]
[342727076,1732086729833,-500.0,0.00058082,120]
[342727077,1732086729843,-1137.2,0.00058082,3]
[342727078,1732086729852,-2847.53,0.00058082,120]
[342727079,1732086729862,-500.0,0.00058082,120]
[342727080,1732086729877,-3545.19,0.00058082,120]
[342727081,1732086729887,-500.0,0.00058106,120]
[342727082,1732086729897,-385.0,0.00058342,30]
[342727083,1732086729906,-500.0,0.00058356,120]
[342727084,1732086729916,-500.0,0.00058356,14]
[342727085,1732086729925,-500.0,0.00058356,7]
[342727086,1732086729934,-966.97,0.00058356,120]
[342727087,1732086729944,-1703.66,0.00058356,120]
[342727088,1732086729954,-500.0,0.00058356,120]
[342727089,1732086729963,-153.23260339,0.00058356,120]
[342727090,1732086729972,-500.0,0.00058356,120]
[342727091,1732086729982,-2720.0,0.00058356,120]
[342727092,1732086729992,-500.0,0.00058356,120]
[342727093,1732086730002,-185.18287698,0.00058356,120]
[342727094,1732086730012,-829.63,0.00058356,120]
[342727095,1732086730022,-398.1859627,0.00058356,120]
[342727096,1732086730032,-620.27,0.00058356,120]
[342727097,1732086730042,-2345.32,0.00058356,120]
[342727098,1732086730052,-500.0,0.00058356,120]
[342727099,1732086730061,-1166.49,0.00058356,120]
[342727100,1732086730070,-500.0,0.00058356,120]
[342727101,1732086730079,-734.6,0.00058356,120]
[342727102,1732086730088,-500.0,0.00058356,120]
[342727103,1732086730098,-500.0,0.00058356,120]
[342727104,1732086730107,-2844.38,0.00058356,120]
[342727105,1732086730119,-500.0,0.00058356,120]
[342727106,1732086730128,-1035.53,0.00058356,120]
[342727107,1732086730138,-1318.23,0.00058356,120]
[342727108,1732086730148,-400.36,0.00058356,7]
[342727109,1732086730157,-503.21,0.00058356,120]
[342727110,1732086730166,-500.0,0.00058356,120]
[342727111,1732086730176,-150.0,0.00058356,120]
[342727112,1732086730185,-500.0,0.00058356,120]
[342727113,1732086730194,-500.0,0.00058356,120]
[342727114,1732086730204,-500.0,0.00058356,120]
[342727115,1732086730213,-2000.0,0.00058356,120]
[342727116,1732086730223,-2333.06,0.00058356,120]
[342727117,1732086730232,-500.0,0.00058356,120]
[342727118,1732086730241,-233.17844326,0.00058356,120]
[342727119,1732086730250,-500.0,0.00058356,120]
[342727120,1732086730259,-500.0,0.00058356,120]
[342727121,1732086730269,-500.0,0.00058356,120]
[342727122,1732086730278,-500.0,0.00058356,120]
[342727123,1732086730288,-3055.61,0.00058356,120]
[342727124,1732086730298,-500.0,0.00058356,120]
[342727125,1732086730307,-3168.55,0.00058356,120]
[342727126,1732086730318,-1697.92,0.00058356,120]
[342727127,1732086730328,-500.0,0.00058356,120]
[342727128,1732086730337,-500.0,0.00058356,120]
[342727129,1732086730347,-500.0,0.00058356,120]
[342727130,1732086730357,-500.0,0.00058356,120]
[342727131,1732086730368,-500.0,0.00058356,120]
[342727132,1732086730378,-500.0,0.00058356,120]
[342727133,1732086730387,-500.0,0.00058356,120]
[342727134,1732086730398,-500.0,0.00058356,120]
[342727135,1732086730408,-659.42,0.00058356,120]
[342727136,1732086730417,-500.0,0.00058356,120]
[342727137,1732086730427,-2717.09,0.00058356,120]
[342727138,1732086730436,-500.0,0.00058356,120]
[342727139,1732086730445,-447.84204967,0.00058356,120]
[342727140,1732086730454,-500.0,0.00058356,120]
[342727141,1732086730464,-500.0,0.00058356,120]
[342727142,1732086730473,-798.52,0.00058356,120]
[342727143,1732086730482,-982.26,0.00058356,120]
[342727144,1732086730492,-707.74,0.00058356,120]
[342727145,1732086730501,-4470.82,0.00058356,120]
[342727146,1732086730511,-500.0,0.00058356,120]
[342727147,1732086730520,-650.76,0.00058356,21]
[342727148,1732086730529,-2268.24,0.00058356,120]
[342727149,1732086730539,-3957.68,0.00058356,60]
[342727150,1732086730550,-717.59,0.00058356,120]
[342727151,1732086730558,-3094.65,0.00058356,120]
[342727152,1732086730568,-2000.0,0.00058356,120]
[342727153,1732086730577,-294.0245704,0.00058356,120]
[342727154,1732086730586,-998.06,0.00058356,120]
[342727155,1732086730596,-1516.88,0.00058356,120]
[342727156,1732086730605,-617.47,0.00058356,120]
[342727157,1732086730615,-2604.2,0.00058356,120]
[342727158,1732086730624,-500.17,0.00058356,120]
[342727159,1732086730633,-635.36,0.00058356,120]
[342727160,1732086730643,-500.0,0.00058356,120]
[342727161,1732086730652,-500.0,0.00058356,120]
[342727162,1732086730661,-600.71125668,0.00058356,120]
[342727163,1732086730670,-700.75,0.00058356,120]
[342727164,1732086730679,-500.0,0.00058356,120]
[342727165,1732086730689,-505.72,0.00058356,120]
[342727166,1732086730698,-500.0,0.00058356,120]
[342727167,1732086730707,-1000.0,0.00058356,120]
[342727168,1732086730717,-500.0,0.00058356,30]
[342727169,1732086730726,-3206.56,0.00058356,120]
[342727170,1732086730735,-946.93,0.00058356,120]
[342727171,1732086730744,-508.31,0.00058356,120]
[342727172,1732086730754,-500.0,0.00058356,120]
[342727173,1732086730763,-442.27549788,0.00058356,120]
[342727174,1732086730772,-2581.57,0.00058356,120]
[342727175,1732086730781,-1301.4,0.00058356,120]
[342727176,1732086730790,-5192.93,0.00058356,120]
[342727177,1732086730799,-500.0,0.00058356,120]
[342727178,1732086730809,-852.9,0.00058356,120]
[342727179,1732086730818,-2774.17,0.00058356,120]
[342727180,1732086730831,-3061.68,0.00058356,120]
[342727181,1732086730840,-500.0,0.00058356,120]
[342727182,1732086730850,-511.47333238,0.00058356,120]
[342727183,1732086730859,-2031.6,0.00058356,120]
[342727184,1732086730873,-500.0,0.00058356,120]
[342727185,1732086730882,-602.83463949,0.00058356,120]
[342727186,1732086730892,-2936.91,0.00058356,120]
[342727187,1732086730901,-500.0,0.00058356,120]
[342727188,1732086730911,-720.2,0.00058356,120]
[342727189,1732086730919,-2810.53,0.00058356,120]
[342727190,1732086730929,-1822.63,0.00058356,120]
[342727191,1732086730939,-1273.99,0.00058356,120]
[342727192,1732086730948,-850.0,0.00058356,120]
[342727193,1732086730958,-711.44,0.00058356,120]
[342727194,1732086730967,-729.82,0.00058356,120]
[342727195,1732086730976,-2955.44,0.00058356,120]
[342727196,1732086730986,-2080.78,0.00058356,120]
[342727197,1732086730994,-1918.47,0.00058356,120]
[342727198,1732086731004,-606.63,0.00058356,120]
[342727199,1732086731013,-500.0,0.00058356,120]
[342727200,1732086731023,-1137.2,0.00058356,3]
[342727201,1732086731032,-2847.53,0.00058356,120]
[342727202,1732086731041,-500.0,0.00058356,120]
[342727203,1732086731050,-3545.19,0.00058356,120]
[342727204,1732086731059,-52433.1451813,0.00058381,7]
[342727205,1732086731068,-3184.07003856,0.00058381,7]
[342727206,1732086731077,-150.0,0.000585,115]
[342727207,1732086731087,-193.0,0.000586,48]
[342727208,1732086731096,-500.0,0.0005863,120]
[342727209,1732086731106,-500.0,0.0005863,14]
[342727210,1732086731118,-500.0,0.0005863,7]
[342727211,1732086731128,-966.97,0.0005863,120]
[342727212,1732086731138,-1703.66,0.0005863,120]
[342727213,1732086731147,-500.0,0.0005863,120]
[342727214,1732086731157,-500.0,0.0005863,120]
[342727215,1732086731166,-2720.0,0.0005863,120]
[342727216,1732086731176,-500.0,0.0005863,120]
[342727217,1732086731186,-829.63,0.0005863,120]
[342727218,1732086731195,-620.27,0.0005863,120]
[342727219,1732086731204,-2345.32,0.0005863,120]
[342727220,1732086731214,-500.0,0.0005863,120]
[342727221,1732086731225,-1166.49,0.0005863,120]
[342727222,1732086731235,-500.0,0.0005863,120]
[342727223,1732086731245,-734.6,0.0005863,120]
[342727224,1732086731255,-187.30967709,0.0005863,120]
[342727225,1732086731265,-500.0,0.0005863,120]
[342727226,1732086731275,-2844.38,0.0005863,120]
[342727227,1732086731286,-216.17208662,0.0005863,120]
[342727228,1732086731295,-1035.53,0.0005863,120]
[342727229,1732086731305,-1318.23,0.0005863,120]
[342727230,1732086731317,-400.36,0.0005863,7]
[342727231,1732086731329,-503.21,0.0005863,120]
[342727232,1732086731338,-500.0,0.0005863,120]
[342727233,1732086731350,-150.0,0.0005863,120]
[342727234,1732086731361,-500.0,0.0005863,120]
[342727235,1732086731373,-500.0,0.0005863,120]
[342727236,1732086731384,-500.0,0.0005863,120]
[342727237,1732086731393,-2000.0,0.0005863,120]
[342727238,1732086731405,-2333.06,0.0005863,120]
[342727239,1732086731414,-500.0,0.0005863,120]
[342727240,1732086731424,-500.0,0.0005863,120]
[342727241,1732086731433,-500.0,0.0005863,120]
[342727242,1732086731442,-481.18755067,0.0005863,120]
[342727243,1732086731452,-500.0,0.0005863,120]
[342727244,1732086731462,-3055.61,0.0005863,120]
[342727245,1732086731471,-500.0,0.0005863,120]
[342727246,1732086731480,-3168.55,0.0005863,120]
[342727247,1732086731490,-1697.92,0.0005863,120]
[342727248,1732086731499,-500.0,0.0005863,120]
[342727249,1732086731509,-500.0,0.0005863,120]
[342727250,1732086731519,-500.0,0.0005863,120]
[342727251,1732086731530,-410.45939898,0.0005863,120]
[342727252,1732086731540,-500.0,0.0005863,120]
[342727253,1732086731552,-500.0,0.0005863,120]
[342727254,1732086731562,-500.0,0.0005863,120]
[342727255,1732086731571,-500.0,0.0005863,120]
[342727256,1732086731581,-659.42,0.0005863,120]
[342727257,1732086731592,-500.0,0.0005863,120]
[342727258,1732086731602,-2717.09,0.0005863,120]
[342727259,1732086731612,-500.0,0.0005863,120]
[342727260,1732086731624,-500.0,0.0005863,120]
[342727261,1732086731634,-500.0,0.0005863,120]
[342727262,1732086731643,-798.52,0.0005863,120]
[342727263,1732086731653,-982.26,0.0005863,120]
[342727264,1732086731662,-707.74,0.0005863,120]
[342727265,1732086731672,-4470.82,0.0005863,120]
[342727266,1732086731681,-500.0,0.0005863,120]
[342727267,1732086731690,-650.76,0.0005863,21]
[342727268,1732086731700,-2268.24,0.0005863,120]
[342727269,1732086731710,-3957.68,0.0005863,60]
[342727270,1732086731719,-717.59,0.0005863,120]
[342727271,1732086731728,-3094.65,0.0005863,120]
[342727272,1732086731737,-2000.0,0.0005863,120]
[342727273,1732086731746,-998.06,0.0005863,120]
[342727274,1732086731756,-1516.88,0.0005863,120]
[342727275,1732086731766,-617.47,0.0005863,120]
[342727276,1732086731776,-2604.2,0.0005863,120]
[342727277,1732086731788,-500.17,0.0005863,120]
[342727278,1732086731799,-635.36,0.0005863,120]
[342727279,1732086731809,-500.0,0.0005863,120]
[342727280,1732086731819,-500.0,0.0005863,120]
[342727281,1732086731828,-700.75,0.0005863,120]
[342727282,1732086731837,-500.0,0.0005863,120]
[342727283,1732086731847,-505.72,0.0005863,120]
[342727284,1732086731857,-500.0,0.0005863,120]
[342727285,1732086731866,-1000.0,0.0005863,120]
[342727286,1732086731875,-558.71825009,0.0005863,30]
[342727287,1732086731885,-3206.56,0.0005863,120]
[342727288,1732086731895,-946.93,0.0005863,120]
[342727289,1732086731904,-508.31,0.0005863,120]
[342727290,1732086732071,-500.0,0.0005863,120]
[342727291,1732086732080,-2581.57,0.0005863,120]
[342727292,1732086732090,-1301.4,0.0005863,120]
[342727293,1732086732100,-5192.93,0.0005863,120]
[342727294,1732086732111,-215.99541074,0.0005863,120]
[342727295,1732086732123,-852.9,0.0005863,120]
[342727296,1732086732132,-2774.17,0.0005863,120]
[342727297,1732086732141,-3061.68,0.0005863,120]
[342727298,1732086732151,-500.0,0.0005863,120]
[342727299,1732086732160,-2031.6,0.0005863,120]
[342727300,1732086732171,-381.26137536,0.0005863,120]
[342727301,1732086732180,-2936.91,0.0005863,120]
[342727302,1732086732190,-500.0,0.0005863,120]
[342727303,1732086732199,-720.2,0.0005863,120]
[342727304,1732086732208,-2810.53,0.0005863,120]
[342727305,1732086732217,-1822.63,0.0005863,120]
[342727306,1732086732228,-1273.99,0.0005863,120]
[342727307,1732086732237,-850.0,0.0005863,120]
[342727308,1732086732247,-711.44,0.0005863,120]
[342727309,1732086732257,-729.82,0.0005863,120]
[342727310,1732086732266,-2955.44,0.0005863,120]
[342727311,1732086732275,-2080.78,0.0005863,120]
[342727312,1732086732285,-1918.47,0.0005863,120]
[342727313,1732086732294,-606.63,0.0005863,120]
[342727314,1732086732303,-500.0,0.0005863,120]
[342727315,1732086732312,-1137.2,0.0005863,3]
[342727316,1732086732325,-2847.53,0.0005863,120]
[342727317,1732086732335,-500.0,0.0005863,120]
[342727318,1732086732344,-500.0,0.00058654,120]
[342727319,1732086732353,-230.65631041,0.00058723,30]
[342727320,1732086732363,-500.0,0.000588,120]
[342727321,1732086732374,-3289.97,0.000589,90]
[342727322,1732086732383,-8473.46099734,0.00058904,120]
[342727323,1732086732393,-500.0,0.00058904,120]
[342727324,1732086732402,-500.0,0.00058904,14]
[342727325,1732086732411,-500.0,0.00058904,7]
[342727326,1732086732420,-966.97,0.00058904,120]
[342727327,1732086732430,-1703.66,0.00058904,120]
[342727328,1732086732439,-372.16446084,0.00058904,120]
[342727329,1732086732448,-500.0,0.00058904,120]
[342727330,1732086732458,-2720.0,0.00058904,120]
[342727331,1732086732467,-500.0,0.00058904,120]
[342727332,1732086732476,-829.63,0.00058904,120]
[342727333,1732086732485,-620.27,0.00058904,120]
[342727334,1732086732494,-2345.32,0.00058904,120]
[342727335,1732086732504,-500.0,0.00058904,120]
[342727336,1732086732512,-1166.49,0.00058904,120]
[342727337,1732086732521,-277.77412292,0.00058904,120]
[342727338,1732086732530,-734.6,0.00058904,120]
[342727339,1732086732539,-500.0,0.00058904,120]
[342727340,1732086732549,-2844.38,0.00058904,120]
[342727341,1732086732560,-1035.53,0.00058904,120]
[342727342,1732086732569,-1318.23,0.00058904,120]
[342727343,1732086732579,-400.36,0.00058904,7]
[342727344,1732086732588,-503.21,0.00058904,120]
[342727345,1732086732597,-500.0,0.00058904,120]
[342727346,1732086732607,-150.0,0.00058904,120]
[342727347,1732086732618,-500.0,0.00058904,120]
[342727348,1732086732628,-500.0,0.00058904,120]
[342727349,1732086732637,-500.0,0.00058904,120]
[342727350,1732086732647,-2000.0,0.00058904,120]
[342727351,1732086732656,-2333.06,0.00058904,120]
[342727352,1732086732665,-500.0,0.00058904,120]
[342727353,1732086732674,-500.0,0.00058904,120]
[342727354,1732086732683,-500.0,0.00058904,120]
[342727355,1732086732693,-500.0,0.00058904,120]
[342727356,1732086732702,-3055.61,0.00058904,120]
[342727357,1732086732711,-500.0,0.00058904,120]
[342727358,1732086732720,-3168.55,0.00058904,120]
[342727359,1732086732730,-1697.92,0.00058904,120]
[342727360,1732086732739,-472.14095073,0.00058904,120]
[342727361,1732086732748,-549.60541448,0.00058904,120]
[342727362,1732086732757,-500.0,0.00058904,120]
[342727363,1732086732766,-500.0,0.00058904,120]
[342727364,1732086732775,-500.0,0.00058904,120]
[342727365,1732086732784,-500.0,0.00058904,120]
[342727366,1732086732794,-500.0,0.00058904,120]
[342727367,1732086732803,-659.42,0.00058904,120]
[342727368,1732086732812,-387.34861766,0.00058904,120]
[342727369,1732086732821,-2717.09,0.00058904,120]
[342727370,1732086732831,-500.0,0.00058904,120]
[342727371,1732086732840,-500.0,0.00058904,120]
[342727372,1732086732850,-500.0,0.00058904,120]
[342727373,1732086732859,-798.52,0.00058904,120]
[342727374,1732086732870,-982.26,0.00058904,120]
[342727375,1732086732883,-707.74,0.00058904,120]
[342727376,1732086732893,-4470.82,0.00058904,120]
[342727377,1732086732902,-500.0,0.00058904,120]
[342727378,1732086732912,-650.76,0.00058904,21]
[342727379,1732086732921,-2268.24,0.00058904,120]
[342727380,1732086732931,-3957.68,0.00058904,60]
[342727381,1732086732940,-717.59,0.00058904,120]
[342727382,1732086732950,-3094.65,0.00058904,120]
[342727383,1732086732959,-2000.0,0.00058904,120]
[342727384,1732086732968,-998.06,0.00058904,120]
[342727385,1732086732978,-1516.88,0.00058904,120]
[342727386,1732086732987,-617.47,0.00058904,120]
[342727387,1732086732996,-2604.2,0.00058904,120]
[342727388,1732086733006,-500.17,0.00058904,120]
[342727389,1732086733015,-635.36,0.00058904,120]
[342727390,1732086733025,-522.34940421,0.00058904,120]
[342727391,1732086733034,-295.26437825,0.00058904,120]
[342727392,1732086733043,-700.75,0.00058904,120]
[342727393,1732086733052,-500.0,0.00058904,120]
[342727394,1732086733062,-505.72,0.00058904,120]
[342727395,1732086733072,-500.0,0.00058904,120]
[342727396,1732086733081,-1000.0,0.00058904,120]
[342727397,1732086733091,-3206.56,0.00058904,120]
[342727398,1732086733100,-946.93,0.00058904,120]
[342727399,1732086733109,-508.31,0.00058904,120]
[342727400,1732086733121,-537.35716645,0.00058904,120]
[342727401,1732086733130,-2581.57,0.00058904,120]
[342727402,1732086733140,-1301.4,0.00058904,120]
[342727403,1732086733150,-5192.93,0.00058904,120]
[342727404,1732086733160,-852.9,0.00058904,120]
[342727405,1732086733169,-2774.17,0.00058904,120]
[342727406,1732086733178,-3061.68,0.00058904,120]
[342727407,1732086733187,-500.0,0.00058904,120]
[342727408,1732086733196,-2031.6,0.00058904,120]
[342727409,1732086733206,-2936.91,0.00058904,120]
[342727410,1732086733215,-500.0,0.00058904,120]
[342727411,1732086733224,-720.2,0.00058904,120]
[342727412,1732086733233,-2810.53,0.00058904,120]
[342727413,1732086733242,-1822.63,0.00058904,120]
[342727414,1732086733252,-1273.99,0.00058904,120]
[342727415,1732086733262,-850.0,0.00058904,120]
[342727416,1732086733271,-711.44,0.00058904,120]
[342727417,1732086733280,-729.82,0.00058904,120]
[342727418,1732086733289,-2955.44,0.00058904,120]
[342727419,1732086733299,-2080.78,0.00058904,120]
[342727420,1732086733308,-1918.47,0.00058904,120]
[342727421,1732086733317,-606.63,0.00058904,120]
[342727422,1732086733330,-500.0,0.00058904,120]
[342727423,1732086733339,-1137.2,0.00058904,3]
[342727424,1732086733348,-2847.53,0.00058904,120]
[342727425,1732086733357,-385.0,0.00058919,30]
[342727426,1732086733371,-14043.70091418,0.00059,120]
[342727427,1732086733380,-327922.891485,0.00059,30]
[342727428,1732086733389,-10000.0,0.00059,120]
[342727429,1732086733399,-1000.0,0.00059,120]
[342727430,1732086733409,-1000.0,0.00059,120]
[342727431,1732086733418,-1000.0,0.00059,120]
[342727432,1732086733427,-1000.0,0.00059,120]
[342727433,1732086733437,-29775.345382,0.00059,120]
[342727434,1732086733447,-800.0,0.00059,2]
[342727435,1732086733457,-800.0,0.00059,2]
[342727436,1732086733468,-222.40826593,0.00059,116]
[342727437,1732086733477,-2000.0,0.00059178,120]
[342727438,1732086733487,-500.0,0.00059178,120]
[342727439,1732086733496,-500.0,0.00059178,14]
[342727440,1732086733507,-500.0,0.00059178,7]
[342727441,1732086733516,-966.97,0.00059178,120]
[342727442,1732086733526,-1703.66,0.00059178,120]
[342727443,1732086733535,-500.0,0.00059178,120]
[342727444,1732086733545,-2720.0,0.00059178,120]
[342727445,1732086733554,-500.0,0.00059178,120]
[342727446,1732086733564,-829.63,0.00059178,120]
[342727447,1732086733573,-620.27,0.00059178,120]
[342727448,1732086733582,-2345.32,0.00059178,120]
[342727449,1732086733592,-500.0,0.00059178,120]
[342727450,1732086733601,-1166.49,0.00059178,120]
[342727451,1732086733610,-734.6,0.00059178,120]